Cogmind - Beta 16 @@@ ROGUE MODE // 2025.10.30 @ 23:05:28 Player: cart Result: Destroyed by Y0-09B(R) with Subdweller Beam Cannon Performance ------------- Evolutions (0) 0 Regions Visited (2) 400 Robots Destroyed (32) 160 Value Destroyed (629) 629 Prototype IDs (0) 0 Alien Tech Used (0) 0 Bonus (0) 0 TOTAL SCORE: 1189 Bonus ------- None Cogmind --------- Core Integrity 0/250 Matter 261/300 Energy 54/100 System Corruption 0% Temperature Cool (9) Movement Treading (320) Ox2 Location -10/Subcaves Parts ------- > --- POWER (1) -------- (None) > --- PROPULSION (2) --- Light Treads Subdweller Monowheel > --- UTILITY (2) ------ High-capacity Storage Unit > --- WEAPON (2) ------- Subdweller Beam Cannon Shotgun > --- INVENTORY (20) --- Light Ion Engine Subdweller Power Source Flight Unit Flight Unit Medium Storage Unit Large Storage Unit Huge Storage Unit High-capacity Matter Pod (29) Subdweller Optics EM Pulse Gun Heavy Riot Gun Assault Rifle Assault Rifle Assault Rifle Shotgun Shotgun Battle Rifle Peak State ------------ > --- POWER ------------ Light Nuclear Core > --- PROPULSION ------- Light Treads Light Treads > --- UTILITY ---------- Small Storage Unit Seismic Detector > --- WEAPON ----------- Shotgun Shotgun > --- INVENTORY -------- Light Ion Engine Light Treads Light Treads EM Pulse Gun Assault Rifle Light Assault Rifle Shotgun Shotgun [Rating: 12] Favorites ----------- Power Light Nuclear Core Engine Ion Engine Power Core Light Nuclear Core Propulsion Light Treads Treads Light Treads Wheel Subdweller Monowheel Utility Huge Storage Unit Device Seismic Detector Storage Huge Storage Unit Protection Light Armor Plating Weapon Shotgun Energy Cannon Subdweller Beam Cannon Ballistic Gun Shotgun Build | -11 -10 -10 ------- Run | Yrd Mat Sub Slots Evolved . | . . . Power . | . . . Propulsion . | . . . Utility . | . . . Weapon . | . . . Parts Attached 18 | 7 7 4 Power 2 | 1 1 . Engine 1 | 1 . . Core 1 | . 1 . Reactor . | . . . Propulsion 5 | 2 1 2 Treads 4 | 2 1 1 Leg . | . . . Wheel 1 | . . 1 Hover . | . . . Flight . | . . . Utility 6 | 2 3 1 Device 1 | 1 . . Storage 4 | 1 2 1 Processor . | . . . Hackware . | . . . Protection 1 | . 1 . Artifact . | . . . Weapon 5 | 2 2 1 Energy Gun . | . . . Energy Cannon 1 | . . 1 Ballistic Gun 4 | 2 2 . Ballistic Cannon . | . . . Launcher . | . . . Special Weapon . | . . . Impact Weapon . | . . . Slashing Weapon . | . . . Piercing Weapon . | . . . Special Melee Weapon . | . . . Unidentified Prototypes . | . . . Parts Lost 6 | . 1 5 Power 1 | . . 1 Propulsion 3 | . 1 2 Utility 1 | . . 1 Weapon 1 | . . 1 Highest Loss Streak 2 | . 1 2 To Critical Strikes . | . . . Average Backups 11 | 2 9 15 Power 1 | . 1 1 Propulsion 2 | . 2 2 Utility 2 | . 1 4 Weapon 5 | . 5 6 Tool/Special . | . . . Unused Backups 18 | . 2 16 Power 2 | . . 2 Propulsion 4 | . 2 2 Utility 4 | . . 4 Weapon 8 | . . 8 Tool/Special . | . . . Average Slot Usage (%) 90 | . 99 81 Engine 1 | . 3 . Core 10 | . 10 10 Treads 24 | . 27 21 Wheel 1 | . . 2 Device 2 | . 5 . Storage 14 | . 14 14 Protection 6 | . 8 3 Ballistic Gun 27 | . 28 27 Peak Build Rating 12 | 7 12 12 Average Rating 10 | 6 11 10 On Entrance 6 | . 7 12 Avg Prop Armor Cover (%) 11 | . . 11 Naked Turns . | . . . Heaviest Build 94 | 14 94 94 Greatest Support 40 | 40 40 40 Greatest Overweight (x) 4 | . 2 4 Average Overweight (x) 1 | . . 2 Largest Inventory Capacity 25 | 8 25 25 Average Capacity 19 | 7 17 23 Most Carried 18 | 3 14 18 Average Carried 11 | 2 9 15 Final Capacity 25 | 8 25 20 Final Carried 17 | 3 14 17 Class Distribution -------------------- 100% | Mutant Dominant Class ---------------- Mutant | -10/Materials Mutant | -10/Subcaves Resources | -11 -10 -10 ----------- Run | Yrd Mat Sub Matter Collected 909 | 348 398 163 Remotely . | . . . Salvage Created 898 | 226 512 160 Parts 61 | 14 32 15 Haulers Intercepted 2 | . 2 . Recyclers Shooed . | . . . Parts Field Recycled . | . . . Retrieved Matter . | . . . Parts Self-Destructed 12 | . . 12 Prevented . | . . . Parts Restored . | . . . Kills | -11 -10 -10 ------- Run | Yrd Mat Sub Combat Hostiles Destroyed 19 | . 14 5 Guns 18 | . 14 4 Cannons 1 | . . 1 Classes Destroyed 8 | 3 4 1 Worker 3 | 2 1 . Tunneler 6 | 6 . . Hauler 2 | . 2 . Recycler 1 | 1 . . Operator 1 | . 1 . Swarmer 6 | . 6 . Grunt 8 | . 8 . Subdweller 5 | . . 5 Best Kill Streak 6 | 6 5 2 Combat Bots Only 5 | . 5 2 Max Kills in Single Turn 2 | 1 2 1 Gunslinging 1 | . 1 . Exploded . | . . . Melee . | . . . Uniques/NPCs Destroyed . | . . . Combat | -11 -10 -10 -------- Run | Yrd Mat Sub Hostile Shots Fired 104 | . 69 35 Missed 29 | . 19 10 Hits 75 | . 50 25 Projectile 75 | . 50 25 Damage Taken 1191 | . 594 597 Core 278 | . 84 194 Absorbed by Shields . | . . . Core Remaining (%) 100 | 100 . . Volleys Fired 91 | 24 47 20 Largest 2 | 2 2 2 Hottest 103 | 40 46 103 Shots Fired 182 | 48 94 40 Gun 176 | 48 94 34 Cannon 6 | . . 6 Launcher . | . . . Special . | . . . Kinetic 176 | 48 94 34 Thermal 6 | . . 6 Explosive . | . . . Electromagnetic . | . . . Robot Hit Streak 13 | 6 6 13 Robot Miss Streak 8 | 3 8 3 Penetration Max . | . . . Secondary Targets 1 | . 1 . Max Gunslinging Chain 1 | . 1 . Shots Hit Robots 115 | 23 59 33 Core Hits 61 | 15 34 12 Critical Kills 1 | . . 1 Critical Parts Destroyed 1 | . 1 . Critical Strikes 2 | . 1 1 Destroy 2 | . 1 1 Melee Attacks . | . . . Impact . | . . . Slashing . | . . . Piercing . | . . . Sneak Attacks . | . . . Combat Hostiles . | . . . Follow-up Attacks . | . . . Damage Inflicted 1768 | 227 901 640 Guns 1579 | 212 874 493 Cannons 147 | . . 147 Explosions . | . . . Melee . | . . . Ramming 42 | 15 27 . Kinetic 1579 | 212 874 493 Thermal 147 | . . 147 Explosive . | . . . Electromagnetic . | . . . Impact . | . . . Slashing . | . . . Piercing . | . . . Highest Corruption . | . . . Average Corruption . | . . . Corruption Purged . | . . . Corruption Blocked . | . . . Overload Shots . | . . . Overflow Damage . | . . . Projectiles . | . . . Explosions . | . . . Melee . | . . . Knockbacks 1 | . 1 . Impact 1 | . 1 . Kinetic . | . . . Secondary . | . . . Self-Inflicted Damage . | . . . Shots . | . . . Rammed 7 | 5 2 . Targets Rammed 7 | 5 2 . Kicked . | . . . Crushed . | . . . Highest Temperature 23 | . 23 . Average Temperature 8 | . 8 . Received Heat Transfer 468 | . 294 174 Siege Activations . | . . . Martial Activations . | . . . Shielding Activations . | . . . Robots Disrupted . | . . . Combat Hostiles . | . . . Robots Corrupted . | . . . Combat Hostiles . | . . . Parts Fried . | . . . Impact Corruptions . | . . . Robots Melted . | . . . Combat Hostiles . | . . . Parts Melted . | . . . Heat Transferred 185 | . . 185 Parts Sabotaged . | . . . Parts Stolen . | . . . Parts Stripped . | . . . Power Chain Reactions . | . . . Alert | -11 -10 -10 ------- Run | Yrd Mat Sub Maximum Alert Level . | . . . Low Security (%) 100 | 100 100 . Level 1 . | . . . Level 2 . | . . . Level 3 . | . . . Level 4 . | . . . Level 5 . | . . . High Security . | . . . Max Security . | . . . Peak Influence 125 | 20 125 . Initial . | . . . Average 39 | 2 46 . Influence Increases 484 | 45 439 . Destroy 0b10 Robot/C 280 | . 280 . Destroy 0b10 Robot/NC 65 | 45 20 . Destroy Leader 64 | . 64 . Partial Spotted 15 | . 15 . Lose Combat Pursuer 60 | . 60 . Influence Decreases 484 | 45 429 10 Entered New Map 6 | . . 6 Time Decay 468 | 45 419 4 Lost Part 10 | . 10 . Squads Dispatched 2 | . 2 . Investigation 1 | . 1 . Extermination . | . . . Reinforcement 1 | . 1 . Assault . | . . . Garrison . | . . . Intercept . | . . . Searches Triggered . | . . . Construction Impeded . | . . . Haulers Reinforced . | . . . Active Scanning Responses . | . . . Cargo Convoy Interrupts . | . . . Stealth | -11 -10 -10 --------- Run | Yrd Mat Sub Distress Signals . | . . . Communications Jammed . | . . . Distress Signals . | . . . Times Spotted 33 | . 26 7 Peak Tracking Total 6 | . 6 2 Tactical Retreats 4 | . 4 . Traps | -11 -10 -10 ------- Run | Yrd Mat Sub Traps Triggered 2 | . 2 . Indirectly . | . . . Trap Hack Attempts . | . . . Triggered . | . . . Disarmed . | . . . Reprogrammed . | . . . Reused . | . . . Traps Extracted . | . . . Installed . | . . . Triggered . | . . . Machines | -11 -10 -10 ---------- Run | Yrd Mat Sub Machines Disabled . | . . . Max in Single Turn . | . . . Machines Repaired . | . . . Machines Dismantled . | . . . Machines Sabotaged . | . . . Overloaded Fab Kills . | . . . Hacking | -11 -10 -10 --------- Run | Yrd Mat Sub Machines Accessed . | . . . Terminals . | . . . Fabricators . | . . . Repair Stations . | . . . Recycling Units . | . . . Scanalyzers . | . . . Garrison Access . | . . . Total Hacks . | . . . Successful . | . . . Failed . | . . . Catastrophic . | . . . Database Lockouts . | . . . Manual . | . . . Terminals . | . . . Fabricators . | . . . Repair Stations . | . . . Recycling Units . | . . . Scanalyzers . | . . . Garrison Access . | . . . Terminal Hacks . | . . . Fabricator Hacks . | . . . Repair Station Hacks . | . . . Recycling Unit Hacks . | . . . Scanalyzer . | . . . Garrison Access Hacks . | . . . Unauthorized Hacks . | . . . Terminals . | . . . Fabricators . | . . . Repair Stations . | . . . Recycling Units . | . . . Scanalyzers . | . . . Garrison Access . | . . . Data Cores Recovered . | . . . Used . | . . . Hacking Detections . | . . . Full Trace Events . | . . . Feedback Events . | . . . Feedback Blocked . | . . . Robot Schematics Acquired . | . . . Robots Built . | . . . Authchips . | . . . Time . | . . . Total Robot Build Rating . | . . . Part Schematics Acquired . | . . . Parts Built . | . . . Authchips . | . . . Time . | . . . Total Part Build Rating . | . . . Part Studies Acquired . | . . . Parts Repaired . | . . . Time . | . . . Parts Recycled . | . . . Recycled Matter . | . . . Retrieved Matter . | . . . Retrieved Components . | . . . Parts Scanalyzed . | . . . Part Schematics Acquired . | . . . Parts Damaged . | . . . Bothacking | -11 -10 -10 ------------ Run | Yrd Mat Sub Used RIF Installer . | . . . Robots Hacked . | . . . Non-combat . | . . . Combat . | . . . Robot Hacks Applied . | . . . Relay Couplers Released . | . . . Fabnet Peak Effective % . | . . . Robots Rewired . | . . . Allies Hacked . | . . . Hacks Repelled . | . . . Allies | -11 -10 -10 -------- Run | Yrd Mat Sub Total Allies . | . . . Largest Group . | . . . Highest-Rated Group . | . . . Highest-Rated Ally . | . . . Total Orders . | . . . Ally Attacks . | . . . Total Damage . | . . . Kills . | . . . Allies Corrupted . | . . . Allies Melted . | . . . Intel | -11 -10 -10 ------- Run | Yrd Mat Sub Active Infowar (turns) 699 | 166 533 . Seismic 699 | 166 533 . Robot Analysis Total . | . . . Derelict Logs Recovered . | . . . Drone Launches . | . . . Drone Recoveries . | . . . Exploration | -11 -10 -10 ------------- Run | Yrd Mat Sub Turns Passed 3180 | 283 1443 1454 Spaces Moved 1122 | 125 550 447 Core 5 | 5 . . Treads 992 | 120 550 322 Legs . | . . . Wheels 125 | . . 125 Hover . | . . . Flight . | . . . Fastest Speed 50 | 50 160 120 Average Speed 238 | 155 226 276 Slowest Speed 480 | 160 320 480 Overloaded Moves . | . . . Propulsion Burnouts . | . . . Robots Hopped . | . . . Potential Cave-ins . | . . . Cave-ins Triggered . | . . . Exploration Rate (%) 41 | 6 93 26 Regions Visited 2 Branch Regions 1 Pre-discovered Areas . | . . . Known Exits Taken . | . . . Unknown Exits Taken 2 | 1 1 . Scrap Searched . | . . . Spaces Dug . | . . . Terrain Destroyed . | . . . Melee . | . . . Projectile . | . . . AOE . | . . . Terrain Rammed . | . . . Walls Destroyed . | . . . Machines Disabled . | . . . Actions | -11 -10 -10 --------- Run | Yrd Mat Sub Total 1445 | 164 654 627 Wait 175 | 1 26 148 Move 1120 | 124 549 447 Hop . | . . . Pick Up 24 | 3 15 6 Fast Attach 10 | 7 2 1 Attach 3 | . 1 2 Detach . | . . . Swap 8 | . 6 2 Drop 7 | . 6 1 Fire 91 | 24 47 20 Melee . | . . . Ram . | . . . Kick . | . . . Crush 7 | 5 2 . Escape Stasis . | . . . Rewire . | . . . Trap . | . . . Miscellaneous . | . . . Route ------- -11/Scrapyard -10/Materials (discovered 5 exits: [*Mat x3] / [*Min] / [*Sub]) -10/Subcaves History --------- Turn | Location | Event 31 | -11/Scrapyard | Discovered new exit (range 16) 284 | -11/Scrapyard | Entered Materials 304 | -10/Materials | Build established: Mutant 488 | -10/Materials | Discovered new exit (range 13) 840 | -10/Materials | Discovered new exit (range 16) 1099 | -10/Materials | Discovered new exit (range 9) 1316 | -10/Materials | Discovered new exit (range 14) 1705 | -10/Materials | Discovered new exit (range 7) 1727 | -10/Materials | Entered Subcaves 2852 | -10/Subcaves | Core integrity fell below 50% 3170 | -10/Subcaves | Core integrity fell below 20% 3181 | -10/Subcaves | Destroyed by Y0-09B(R) with Subdweller Beam Cannon Last Messages --------------- 02480_ I5-XT0(R): "ECOKILL!" 02490_ Lgt. Treads destroyed. 02859_ Lgt. Nuclear Core destroyed. 02861_ SX-52O(R) destroyed. 02864_ Acquired 18 matter. 02946_ 3T-GDG(R) destroyed. 02951_ Acquired Sub. Monowheel. 02953_ Acquired 40 matter. 02955_ Dropped Sub. Optics. 02955_ Acquired Sub. Optics. 02958_ Subatomizers dissect the Disposable Heat Sink. 02988_ Acquired 53 matter. 03019_ Acquired Battle Rifle. 03036_ Acquired Sub. Beam Cannon. 03052_ Acquired Hvy. Riot Gun. 03114_ Sub. Monowheel shoots sparks and powers down. 03150_ Shotgun destroyed. 03171_ TS-1B3(R) destroyed. 03176_ Y0-09B(R) affixes Scrap Shield Fragment to Scrap Shield. Map ----- +----------------------------------------------------+ | ??????????????????????#######???# ### ## | | ??????????????######### # # ##### | | ??????????????# # # # | | ??????????????# ## | | ??????????????# ### # # | | ??????????????# # # #?######### | | ??????????????# ## # ##????????# | | ??????????????## #?##????? | | ??????????????## # ^ ## ##???? | | ??????????????# ## ^#???# | | ??????????????# ## #???# | | ??????????????# ### ^ #??? | | ??????????????#### ## ## ## | | ???????????????## ###?## #?????## | | ??????????????## ##????? ??????# | | ??????????????# #?????? ????? ## | | ??????????????## ##?????? ?????? ## | | ??????????????# #???????? ??????? | | ??????????????## ##???????? ??????????# | | ??????????????# #???????????????????#### | | ??????????????## ##??????????????????????# | | ??????????????# #??????????????????????? | | ??????????????## ##??????????????????????? | | ??????????????# #???????????????????????? | | ??????????????# R ##??????????????????????? | | ??????????????#=*!@#??????????????????????? | | ??????????????#!%%##??????????????????????? | | ??????????????#&[! #??????????????????????? | | ??????????????## #?????????????????????? | | ??????????????? ????????????????????? | | ??????????????## ???????????????????? | | ???????????????### ??????????????????? | | ??????????????????## ?????????????????? | | ???????????????????? ????????????????? | | ???????????????????? ??????????????? | | ????????????????????? ?????????????? | | ????????????????????? ?????????????? | | ????????????????????? ?????????????? | | ?????????????????????? ???????????????? | | ??????????????????????? ?????????????????? | | ??????????????????????????????????????????? | | ??????????????????????????????????????????? | | ??????????????????????????????????????????? | | ??????????????????????????????????????????? | | ??????????????????????????????????????????? | | ??????????????????????????????????????????? | | ??????????????????????????????????????????? | | ??????????????????????????????????????????? | | ??????????????????????????????????????????? | | ??????????????????????????????????????????? | +----------------------------------------------------+ Best States ------------- Heat Dissipation 25 Energy Generation 14 Energy Capacity 250 Matter Stores 300 Matter Capacity 300 Sight Range 16 Terrain Scan Density 10 Armor Coverage 150 Evasion (%) 40 Recoil Reduction 2 Item Schematics ----------------- None Robot Schematics ------------------ None Fabricated ------------ Nothing Repaired ---------- Nothing Studied --------- None Alien Tech Used ----------------- None Achievements -------------- None Challenges ------------ None Game ------ Seed SpikedParticleFlamer Manual? 0 Play Time 00:10:33 Cumulative 8.8 hours Start 2025.10.30 @ 22:54:02 End 2025.10.30 @ 23:05:28 Sessions 2 Manual Loads 0 Difficulty Rogue Special Mode None Game No. 6 Rogue 6 Adventurer 0 Explorer 0 Win Type - Total 0 Types 0/0/0/0/0/0/0/0/0/0 Lore% 7 Gallery% 15 Achievement% 29 Wizard Run 0 Options --------- Layout 1 ASCII 0 Keyboard 0 Movement Arrows Keybinds 0 Fullscreen 1 Font 20/Terminus Map View 55x45 Zoom Use 0% Tactical HUD 1 Map Filters NONE Filters NONE Steam 0 RUN: 70bdbf67-5dbe-479d-ac2c-c0a606c36e94